{"text_format":"1","workbook":"xlsx","n_sheets":1,"sheets":["Sheet1"],"not_rendered":{"charts":0,"images":1,"macros":1,"external_links":0,"defined_names":1,"comments":0,"pivot_tables":0},"unopened":[],"bounds":{"document_bytes":16777216,"sheet_cells":100000,"rows_first":2000,"rows_last":500,"rows_between":2000,"halvings":0,"cell_chars":16384,"cell_head_chars":4096},"cells_cut":0,"cells_raw":0,"read":"whole","date_system":"1900"}

{"sheet":"Sheet1","index":0,"n_rows":50,"n_cols":30,"rows_kept":50,"cut":false,"hidden":false,"merged":[[0,19,0,22],[6,7,6,10],[7,8,7,10],[10,12,10,17],[11,12,11,17],[12,12,12,17],[18,8,18,14],[18,15,18,17],[18,18,18,19],[18,20,18,22],[19,8,19,14],[19,15,19,17],[19,18,19,19],[19,20,19,22],[16,1,16,14],[16,15,16,17],[16,18,16,19],[16,20,16,22],[17,1,32,4],[17,5,19,7],[17,8,17,14],[17,15,17,17],[17,18,17,19],[17,20,17,22],[22,15,22,17],[22,18,22,19],[22,20,22,22],[23,5,26,7],[23,8,24,8],[23,9,23,14],[23,15,24,17],[23,18,23,19],[23,20,23,22],[24,9,24,14],[20,5,22,7],[20,8,20,14],[20,15,20,17],[20,18,20,19],[20,20,20,22],[21,8,21,14],[21,15,21,17],[21,18,21,19],[21,20,21,22],[22,8,22,14],[24,18,24,19],[24,20,24,22],[25,8,26,8],[25,9,25,14],[25,15,26,17],[25,18,25,19],[25,20,25,22],[26,9,26,14],[26,18,26,19],[26,20,26,22],[27,5,28,7],[27,8,27,14],[27,15,27,17],[27,18,27,19],[27,20,27,22],[28,8,28,14],[28,15,28,17],[28,18,28,19],[28,20,28,22],[29,5,30,7],[29,8,29,14],[29,15,29,17],[29,18,29,19],[29,20,29,22],[30,8,30,14],[30,15,30,17],[30,18,30,19],[30,20,30,22],[35,5,35,14],[31,5,32,7],[31,8,31,14],[31,15,31,17],[31,18,31,19],[31,20,31,22],[32,8,32,14],[32,15,32,17],[32,18,32,19],[32,20,32,22],[37,5,37,14],[37,15,37,17],[37,18,37,19],[37,20,37,22],[38,1,38,14],[38,15,38,17],[38,18,38,19],[38,20,38,22],[35,15,35,17],[35,18,35,19],[35,20,35,22],[36,5,36,14],[36,15,36,17],[36,18,36,19],[36,20,36,22],[33,1,37,4],[33,5,33,14],[33,15,33,17],[33,18,33,19],[33,20,33,22],[34,5,34,14],[34,15,34,17],[34,18,34,19],[34,20,34,22],[41,15,41,17],[41,18,41,19],[41,20,41,22],[42,5,42,14],[42,15,42,17],[42,18,42,19],[42,20,42,22],[39,1,43,4],[39,5,39,14],[39,15,39,17],[39,18,39,19],[39,20,39,22],[40,5,40,14],[40,15,40,17],[40,18,40,19],[40,20,40,22],[41,5,41,14],[45,1,45,19],[45,20,45,22],[46,16,46,18],[46,19,46,22],[43,5,43,14],[43,15,43,17],[43,18,43,19],[43,20,43,22],[44,1,44,14],[44,15,44,17],[44,18,44,19],[44,20,44,22]]}
[null,null,null,null,null,null,null,null,null,null,null,null,null,null,null,null,null,null,null,{"$f":"NOW()","v":"2021-03-19T18:35:00.180"},null,null,null,null,null,null,"選択してください","選択してください",false,0]
[null,null,null,null,null,null,null,null,null,null,null,null,null,null,null,null,null,null,null,null,null,null,null,null,null,null,"選択してください","安心R住宅を購入してリフォーム",false,0]
[null,null,null,null,null,null,null,null,null,null,null,null,null,null,null,null,null,null,null,null,null,null,null,null,null,null,"選択してください","安心R住宅以外を購入してリフォーム",false,0]
["グリーン住宅ポイント　ポイントシミュレーション（リフォーム版）"]
[null,"赤枠内を選択・記入いただくと獲得ポイントをシミュレートすることができます。",null,null,null,null,null,null,null,null,null,null,null,null,null,null,null,null,null,null,null,null,null,null,null,null,"選択してください","上記以外",false,0]
[null,null,null,null,null,null,null,null,null,null,null,null,null,null,null,null,null,null,null,null,null,null,null,null,null,null,"YES","選択してください",false,0]
[null,"合計獲得ポイントは",null,null,null,null,null,{"$f":"IF(50000>V49,\"下限に満たない\",V49)","v":"下限に満たない"},null,null,null,null,"ポイントです。",null,null,null,null,null,null,null,null,null,null,null,null,null,"YES","安心R住宅を購入してリフォーム",600000,1]
[null,null,"獲得可能なポイント上限は",null,null,null,null,null,{"$f":"INDEX(AC1:AC13,SUMPRODUCT((M11=AA1:AA13)*(M12=AB1:AB13),ROW(AC1:AC13)))","v":false},null,null,"ポイントです。※下限は50,000ポイントです。",null,null,null,null,null,null,null,null,null,null,null,null,null,null,"YES","安心R住宅以外を購入してリフォーム",600000,1]
[null,null,null,null,null,null,null,null,null,null,null,null,null,null,null,null,null,null,null,null,null,null,null,null,null,null,"YES","上記以外",450000,0]
[null,"【基本条件入力】",null,null,null,null,null,null,null,null,null,null,null,null,null,null,null,null,null,null,null,null,null,null,null,null,"NO","選択してください",false,0]
[null,null,"１．若者・子育て世帯ですか？※",null,null,null,null,null,null,null,null,null,"選択してください",null,null,null,null,null,null,null,null,null,null,null,null,null,"NO","安心R住宅を購入してリフォーム",450000,1]
[null,null,"２．既存住宅を購入しリフォームを行いますか？",null,null,null,null,null,null,null,null,null,"選択してください",null,null,null,null,null,null,null,null,null,null,null,null,null,"NO","安心R住宅以外を購入してリフォーム",300000,1]
[null,null,"３．購入する既存住宅は100万円以上ですか？",null,null,null,null,null,null,null,null,null,"選択してください",null,null,null,null,null,null,null,null,null,null,null,null,null,"NO","上記以外",300000,0]
[null,null,"※令和２年１２月１５日（閣議決定日）時点で、申請者が 40 歳未満 の世帯。または子育て世帯とは、18 歳未満の子を有する世帯です。"]
[]
[null,"※太枠内のいずれかは必須"]
[null,"対象工事",null,null,null,null,null,null,null,null,null,null,null,null,null,"獲得ポイント",null,null,"箇所数",null,"小計"]
[null,"断熱改修",null,null,null,"ガラス交換",null,null,"大（1.4㎡以上）",null,null,null,null,null,null,7000,null,null,null,null,{"$f":"P18*S18","v":0}]
[null,null,null,null,null,null,null,null,"中（0.8㎡以上 1.4㎡未満）",null,null,null,null,null,null,5000,null,null,null,null,0]
[null,null,null,null,null,null,null,null,"小（0.1㎡以上 0.8㎡未満）",null,null,null,null,null,null,2000,null,null,null,null,0]
[null,null,null,null,null,"内外窓",null,null,"大（2.8㎡以上）",null,null,null,null,null,null,20000,null,null,null,null,0]
[null,null,null,null,null,null,null,null,"中（1.6㎡以上 2.8㎡未満）",null,null,null,null,null,null,15000,null,null,null,null,0]
[null,null,null,null,null,null,null,null,"小（0.2㎡以上 1.6㎡未満）",null,null,null,null,null,null,13000,null,null,null,null,0]
[null,null,null,null,null,"ドア",null,null,"大","（開戸：1.8㎡以上）",null,null,null,null,null,28000,null,null,null,null,0]
[null,null,null,null,null,null,null,null,null,"（引戸：3.0㎡以上）",null,null,null,null,null,null,null,null,null,null,{"$f":"P24*S25","v":0}]
[null,null,null,null,null,null,null,null,"小","（開戸：1.0㎡以上1.8㎡未満）",null,null,null,null,null,24000,null,null,null,null,{"$f":"P26*S26","v":0}]
[null,null,null,null,null,null,null,null,null,"（引戸：1.0㎡以上3.0㎡未満）",null,null,null,null,null,null,null,null,null,null,{"$f":"P26*S27","v":0}]
[null,null,null,null,null,"外壁",null,null,"標準断熱",null,null,null,null,null,null,100000,null,null,"なし",null,{"$f":"IF(S28=\"なし\",0,P28)","v":0}]
[null,null,null,null,null,null,null,null,"部分断熱",null,null,null,null,null,null,50000,null,null,"なし",null,{"$f":"IF(S29=\"なし\",0,P29)","v":0}]
[null,null,null,null,null,"屋根・天井",null,null,"標準断熱",null,null,null,null,null,null,32000,null,null,"なし",null,0]
[null,null,null,null,null,null,null,null,"部分断熱",null,null,null,null,null,null,16000,null,null,"なし",null,0]
[null,null,null,null,null,"床",null,null,"標準断熱",null,null,null,null,null,null,60000,null,null,"なし",null,0]
[null,null,null,null,null,null,null,null,"部分断熱",null,null,null,null,null,null,30000,null,null,"なし",null,0]
[null,"エコ住宅設備",null,null,null,"太陽熱利用システム",null,null,null,null,null,null,null,null,null,24000,null,null,null,null,{"$f":"P34*S34","v":0}]
[null,null,null,null,null,"高断熱浴槽",null,null,null,null,null,null,null,null,null,24000,null,null,null,null,0]
[null,null,null,null,null,"高効率給油器",null,null,null,null,null,null,null,null,null,24000,null,null,null,null,0]
[null,null,null,null,null,"節水型トイレ",null,null,null,null,null,null,null,null,null,16000,null,null,null,null,0]
[null,null,null,null,null,"節遊水栓",null,null,null,null,null,null,null,null,null,4000,null,null,null,null,0]
[null,"耐震改修",null,null,null,null,null,null,null,null,null,null,null,null,null,150000,null,null,null,null,0]
[null,"バリアフリー改修",null,null,null,"手すりの設置",null,null,null,null,null,null,null,null,null,5000,null,null,null,null,0]
[null,null,null,null,null,"段差解消",null,null,null,null,null,null,null,null,null,6000,null,null,null,null,0]
[null,null,null,null,null,"廊下幅等の拡張 （750㎜以上　浴室入口は600㎜以上）",null,null,null,null,null,null,null,null,null,28000,null,null,null,null,0]
[null,null,null,null,null,"ホームエレベーターの新設",null,null,null,null,null,null,null,null,null,150000,null,null,null,null,0]
[null,null,null,null,null,"衝撃緩和畳の設置 （4.5帖以上）",null,null,null,null,null,null,null,null,null,17000,null,null,null,null,0]
[null,"リフォーム工事瑕疵保険への加入",null,null,null,null,null,null,null,null,null,null,null,null,null,7000,null,null,null,null,0]
[null,"既存住宅購入時に加算ポイント ※売買契約額が 100 万円（税込）以上 であること。\n　　　　　　　　　　　　　　　　　　　　　※既存住宅を購入し、リフォームを行う場合、①~⑥のポイントを2倍カウントします。",null,null,null,null,null,null,null,null,null,null,null,null,null,null,null,null,null,null,{"$f":"IF(M13=\"Yes\",SUM(U18:W45)*INDEX(AD1:AD13,SUMPRODUCT((M11=AA1:AA13)*(M12=AB1:AB13),ROW(AC1:AC13))),0)","v":0}]
[null,null,null,null,null,null,null,null,null,null,null,null,null,null,null,null,"合計",null,null,{"$f":"SUM(U18:W46)","v":0}]
[]
[null,"※計算結果はシミュレーションであり、ポイントを保証するものではありません。参考資料としてご利用をお願いいたします。",null,null,null,null,null,null,null,null,null,null,null,null,null,null,null,null,null,null,null,{"$f":"MIN(I8,T47)","v":0}]
[null,"※合計ポイントの対象可否は、申請前に契約会社様・グリーン住宅ポイント事務局等でご確認ください。"]